Cogmind - Beta 10 X2 @@@ ROGUE MODE // 2020.06.20 @ 10:00:59 Player: cptwinky Result: Destroyed by G-47 Trooper with Particle Gun Performance ------------- Evolutions (0) 0 Regions Visited (2) 400 Robots Destroyed (31) 155 Value Destroyed (761) 761 Prototype IDs (0) 0 Alien Tech Used (0) 0 Bonus (0) 0 TOTAL SCORE: 1316 Bonus ------- None Cogmind --------- Core Integrity 0/250 Matter 300/300 Energy 100/100 System Corruption 0% Temperature Cool (9) Movement Walking (210) Ox3 Location -10/Mines Parts ------- > --- POWER (1) -------- (None) > --- PROPULSION (2) --- Aluminum Leg Aluminum Leg > --- UTILITY (2) ------ High-capacity Storage Unit High-capacity Storage Unit > --- WEAPON (2) ------- Light Assault Rifle Light Assault Rifle > --- INVENTORY (20) --- Small Storage Unit Light Armor Plating Light Armor Plating Light Armor Plating Light Armor Plating Light Armor Plating Light Armor Plating Decoy Drone Bay Light Assault Rifle Light Assault Rifle Mining Laser Peak State ------------ > --- POWER ------------ Ion Engine > --- PROPULSION ------- Light Treads Wheel > --- UTILITY ---------- High-capacity Storage Unit High-capacity Storage Unit > --- WEAPON ----------- EM Pulse Gun Medium Laser > --- INVENTORY -------- Ion Engine Light Treads Compact Wheel Small Storage Unit Light Armor Plating Light Armor Plating Light Armor Plating Light Armor Plating Light Armor Plating Light Armor Plating Decoy Drone Bay Light Assault Rifle Light Assault Rifle Light Assault Rifle Light Assault Rifle Light Assault Rifle Light Assault Rifle Light Assault Rifle Mining Laser [Rating: 10] Favorites ----------- Power Ion Engine Engine Ion Engine Propulsion Light Treads Treads Light Treads Leg Aluminum Leg Wheel Wheel Utility High-capacity Storage Unit Storage High-capacity Storage Unit Weapon EM Pulse Gun Energy Gun EM Pulse Gun Ballistic Gun Light Assault Rifle Special Weapon Mining Laser Build | -11 -10 -10 ------- Run | Scr Mat Min Slots Evolved . | . . . Power . | . . . Propulsion . | . . . Utility . | . . . Weapon . | . . . Parts Attached 31 | 6 6 19 Power 2 | 1 . 1 Engine 2 | 1 . 1 Core . | . . . Reactor . | . . . Propulsion 7 | 2 . 5 Treads 2 | 1 . 1 Leg 2 | . . 2 Wheel 3 | 1 . 2 Hover . | . . . Flight . | . . . Utility 3 | 1 2 . Device . | . . . Storage 3 | 1 2 . Processor . | . . . Hackware . | . . . Protection . | . . . Artifact . | . . . Weapon 19 | 2 4 13 Energy Gun 10 | 2 3 5 Energy Cannon . | . . . Ballistic Gun 7 | . 1 6 Ballistic Cannon . | . . . Launcher . | . . . Special Weapon 2 | . . 2 Impact Weapon . | . . . Slashing Weapon . | . . . Piercing Weapon . | . . . Special Melee Weapon . | . . . Unidentified Prototypes . | . . . Parts Lost 13 | . . 13 Power 2 | . . 2 Propulsion 4 | . . 4 Utility . | . . . Weapon 7 | . . 7 Highest Loss Streak 6 | . . 6 Average Slot Usage (%) 97 | . 95 97 Engine 13 | . 14 13 Treads 14 | . 14 14 Leg 2 | . . 3 Wheel 10 | . 14 9 Storage 26 | . 23 28 Energy Gun 18 | . 27 15 Ballistic Gun 8 | . . 11 Naked Turns . | . . . Heaviest Build 73 | 13 73 73 Greatest Support 40 | 10 10 40 Greatest Overweight (x) 7 | 1 7 7 Average Overweight (x) 4 | . 4 5 Largest Inventory Capacity 20 | 6 20 20 Average Capacity 17 | 5 15 20 Most Carried 20 | 4 18 20 Average Carried 14 | 2 10 17 Final Capacity 20 | 6 20 20 Final Carried 18 | 4 18 12 Class Distribution -------------------- 85% | Hauler-Mutant 14% | Mutant Dominant Class ---------------- Hauler-Mutant | -10/Materials Hauler-Mutant | -10/Mines Resources | -11 -10 -10 ----------- Run | Scr Mat Min Matter Collected 578 | 260 66 252 Remotely . | . . . Salvage Created 983 | 91 298 594 Parts 57 | . 30 27 Haulers Intercepted . | . . . Recyclers Shooed . | . . . Parts Field Recycled . | . . . Retrieved Matter . | . . . Parts Self-Destructed . | . . . Prevented . | . . . Kills | -11 -10 -10 ------- Run | Scr Mat Min Combat Hostiles Destroyed 28 | . 10 18 Guns 27 | . 9 18 AOE 1 | . 1 . Classes Destroyed 5 | 1 4 . Builder 1 | . 1 . Recycler 1 | 1 . . Operator 1 | . 1 . Swarmer 11 | . 6 5 Grunt 17 | . 4 13 Best Kill Streak 9 | 1 9 3 Combat Bots Only 7 | . 7 3 Max Kills in Single Turn 2 | 1 2 1 Gunslinging . | . . . Exploded 1 | . 1 . Melee . | . . . Uniques/NPCs Destroyed . | . . . Combat | -11 -10 -10 -------- Run | Scr Mat Min Damage Taken 1495 | 13 120 1362 Core 255 | . 9 246 Absorbed by Shields . | . . . Core Remaining (%) 100 | 100 . . Volleys Fired 113 | 5 20 88 Largest 2 | 2 2 2 Hottest 100 | 80 80 100 Shots Fired 222 | 10 40 172 Gun 218 | 10 40 168 Cannon . | . . . Launcher . | . . . Special 4 | . . 4 Kinetic 128 | . 6 122 Thermal 30 | . 6 24 Explosive . | . . . Electromagnetic 64 | 10 28 26 Robot Hit Streak 17 | 9 8 17 Robot Miss Streak 4 | 1 2 4 Penetration Max . | . . . Secondary Targets 5 | . 2 3 Max Gunslinging Chain 1 | . 1 1 Shots Hit Robots 155 | 9 25 121 Core Hits 51 | . 14 37 Critical Hits . | . . . Critical Kills . | . . . Critical Parts Destroyed . | . . . Melee Attacks . | . . . Impact . | . . . Slashing . | . . . Piercing . | . . . Sneak Attacks . | . . . Combat Hostiles . | . . . Follow-up Attacks . | . . . Damage Inflicted 1660 | 151 347 1162 Guns 1530 | 107 261 1162 Cannons . | . . . Explosions 130 | 44 86 . Melee . | . . . Ramming . | . . . Kinetic 748 | . 31 717 Thermal 342 | 44 111 187 Explosive . | . . . Electromagnetic 570 | 107 205 258 Impact . | . . . Slashing . | . . . Piercing . | . . . Highest Corruption . | . . . Average Corruption . | . . . Corruption Purged . | . . . Overload Shots . | . . . Overflow Damage . | . . . Projectiles . | . . . Explosions . | . . . Melee . | . . . Knockbacks . | . . . Impact . | . . . Kinetic . | . . . Secondary . | . . . Self-Inflicted Damage 13 | 13 . . Shots 1 | 1 . . Rammed . | . . . Targets Rammed . | . . . Kicked . | . . . Crushed . | . . . Highest Temperature 297 | 102 100 297 Average Temperature 66 | 48 39 75 Received Heat Transfer 669 | . 6 663 Effects 3 | . . 3 Energy Bleed 3 | . . 3 Siege Activations . | . . . Robots Corrupted 1 | 1 . . Combat Hostiles . | . . . Parts Fried 4 | . 3 1 Impact Corruptions . | . . . Robots Melted . | . . . Combat Hostiles . | . . . Parts Melted . | . . . Heat Transferred 779 | 50 174 555 Parts Sabotaged . | . . . Parts Stolen . | . . . Parts Stripped . | . . . Power Chain Reactions 2 | 1 1 . Missiles Intercepted . | . . . Alert | -11 -10 -10 ------- Run | Scr Mat Min Peak Influence 288 | 5 288 243 Average Influence 172 | 1 188 182 Maximum Alert Level 1 | . 1 1 Low Security (%) 45 | 100 41 41 Level 1 54 | . 58 58 Level 2 . | . . . Level 3 . | . . . Level 4 . | . . . Level 5 . | . . . High Security . | . . . Max Security . | . . . Squads Dispatched 4 | . 3 1 Investigation . | . . . Extermination . | . . . Reinforcement 3 | . 3 . Assault 1 | . . 1 Garrison . | . . . Intercept . | . . . Construction Impeded . | . . . Haulers Reinforced . | . . . Stealth | -11 -10 -10 --------- Run | Scr Mat Min Distress Signals 2 | . 1 1 Communications Jammed . | . . . Distress Signals . | . . . Times Spotted 40 | . 14 26 Peak Tracking Total 4 | . 4 4 Tactical Retreats 3 | . . 3 Traps | -11 -10 -10 ------- Run | Scr Mat Min Traps Triggered . | . . . Indirectly . | . . . Trap Hack Attempts . | . . . Triggered . | . . . Disarmed . | . . . Reprogrammed . | . . . Reused . | . . . Traps Extracted . | . . . Installed . | . . . Triggered . | . . . Machines | -11 -10 -10 ---------- Run | Scr Mat Min Machines Disabled 2 | . 1 1 Max in Single Turn 1 | . 1 1 Machines Sabotaged . | . . . Garrisons Compromised . | . . . Overloaded Fab Kills . | . . . Fab Network Shutdowns . | . . . Hacking | -11 -10 -10 --------- Run | Scr Mat Min Machines Accessed 2 | . 1 1 Terminals 1 | . 1 . Fabricators . | . . . Repair Stations . | . . . Recycling Units . | . . . Scanalyzers . | . . . Garrison Access . | . . . Total Hacks 3 | . 2 1 Successful 1 | . . 1 Failed 2 | . 2 . Catastrophic 1 | . 1 . Database Lockouts . | . . . Manual 2 | . 2 . Terminals 2 | . 2 . Fabricators . | . . . Repair Stations . | . . . Recycling Units . | . . . Scanalyzers . | . . . Garrison Access . | . . . Terminal Hacks 1 | . . 1 Open Door 1 | . . 1 Fabricator Hacks . | . . . Repair Station Hacks . | . . . Recycling Unit Hacks . | . . . Scanalyzer . | . . . Garrison Access Hacks . | . . . Unauthorized Hacks . | . . . Terminals . | . . . Fabricators . | . . . Repair Stations . | . . . Recycling Units . | . . . Scanalyzers . | . . . Garrison Access . | . . . Data Cores Recovered . | . . . Used . | . . . Hacking Detections 1 | . 1 . Full Trace Events 1 | . 1 . Feedback Events . | . . . Feedback Blocked . | . . . Robot Schematics Acquired . | . . . Robots Built . | . . . Matter . | . . . Time . | . . . Total Robot Build Rating . | . . . Part Schematics Acquired . | . . . Parts Built . | . . . Matter . | . . . Time . | . . . Total Part Build Rating . | . . . Parts Repaired . | . . . Time . | . . . Parts Recycled . | . . . Recycled Matter . | . . . Retrieved Matter . | . . . Retrieved Components . | . . . Parts Scanalyzed . | . . . Part Schematics Acquired . | . . . Parts Damaged . | . . . Bothacking | -11 -10 -10 ------------ Run | Scr Mat Min Used RIF Installer . | . . . Robots Hacked . | . . . Non-combat . | . . . Combat . | . . . Robot Hacks Applied . | . . . Relay Couplers Released . | . . . Robots Rewired . | . . . Allies Hacked . | . . . Hacks Repelled . | . . . Allies | -11 -10 -10 -------- Run | Scr Mat Min Total Allies 1 | . . 1 Largest Group 1 | . . 1 Highest-Rated Group 31 | . . 31 Highest-Rated Ally 31 | . . 31 Total Orders . | . . . Ally Attacks . | . . . Total Damage . | . . . Kills . | . . . Allies Corrupted . | . . . Allies Melted . | . . . Intel | -11 -10 -10 ------- Run | Scr Mat Min Robot Analysis Total . | . . . Derelict Logs Recovered 2 | . . 2 Drone Launches . | . . . Drone Recoveries . | . . . Exploration | -11 -10 -10 ------------- Run | Scr Mat Min Turns Passed 1089 | 69 292 728 Spaces Moved 492 | 49 165 278 Core 1 | 1 . . Treads 34 | . . 34 Legs 13 | . . 13 Wheels 444 | 48 165 231 Hover . | . . . Flight . | . . . Fastest Speed 50 | 50 90 140 Average Speed 139 | 84 126 156 Slowest Speed 300 | 90 150 300 Overloaded Moves . | . . . Propulsion Burnouts . | . . . Robots Hopped . | . . . Cave-ins Triggered . | . . . Exploration Rate (%) 35 | 5 37 63 Regions Visited 2 Branch Regions 1 Pre-discovered Areas . | . . . Known Exits Taken . | . . . Unknown Exits Taken 2 | 1 1 . Scrap Searched . | . . . Spaces Dug . | . . . Terrain Destroyed 7 | 4 2 1 Melee . | . . . Projectile 1 | . . 1 AOE 6 | 4 2 . Actions | -11 -10 -10 --------- Run | Scr Mat Min Total 682 | 63 206 413 Wait 28 | . 3 25 Move 490 | 48 164 278 Hop . | . . . Pick Up 20 | 4 13 3 Fast Attach 9 | 6 1 2 Attach 10 | . . 10 Detach . | . . . Swap 12 | . 5 7 Drop . | . . . Fire 113 | 5 20 88 Melee . | . . . Ram . | . . . Kick . | . . . Crush . | . . . Escape Stasis . | . . . Rewire . | . . . Trap . | . . . Miscellaneous . | . . . Route ------- -11/Scrapyard -10/Materials -10/Mines History --------- Turn | Location | Event 11 | -11/Scrapyard | Discovered new exit (range 16) 70 | -11/Scrapyard | Entered Materials 225 | -10/Materials | Destroyed 7 combat bots 271 | -10/Materials | Discovered new exit (range 15) 362 | -10/Materials | Entered Mines 475 | -10/Mines | Build established: Hauler-Mutant 501 | -10/Mines | Found the Drone Emporium 511 | -10/Mines | Found Prototype Device 669 | -10/Mines | Learned Materials security intel 675 | -10/Mines | Met a Derelict testing a Signal Generator 697 | -10/Mines | Excavation squad dispatched 697 | -10/Mines | A large section of the Mines collapsed 885 | -10/Mines | Core integrity fell below 50% 932 | -10/Mines | Core integrity fell below 20% 947 | -10/Mines | Excavation squad dispatched 962 | -10/Mines | Lost 6 parts (2n4w) 1000 | -10/Mines | Learned Materials emergency access door positions 1082 | -10/Mines | Lost 4 parts (1p2n1w) 1090 | -10/Mines | Destroyed by G-47 Trooper with Particle Gun Last Messages --------------- 00990_ Acquired 15 matter. 00992_ Acquired 6 matter. 00994_ Acquired Lgt. Assault Rifle. 01000_ Acquired derelict log, extracted data. Data stored: Materials emergency access points. 01020_ G-34 Mercenary destroyed. 01027_ Com. Wheel destroyed. 01031_ Lgt. Assault Rifle destroyed. 01045_ G-34 Mercenary destroyed. 01045_ Switching to secondary target: G-34 Mercenary. 01047_ Wheel destroyed. 01051_ Ion Engine destroyed. 01058_ G-34 Mercenary destroyed. 01061_ Acquired 38 matter. 01065_ R-06 Scavenger collects Ion Engine. 01067_ Acquired Aluminum Leg. 01068_ Acquired 10 matter. 01070_ R-06 Scavenger collects Ion Engine. 01074_ R-06 Scavenger collects Sml. Laser. 01077_ R-06 Scavenger collects Heat Sink. Map ----- +----------------------------------------------------+ | ??##=[### ### ###???# """ "" #??# "" | | ???####?# #?# ##?????# % #??# "" | | ????????# #?## #??????## ####### #??# "" | | ????????# #??####???????# ##?????###### #??# | | ????????# ######????????# #???????????# #??# "" | | ????????# #????????# ????????????# #### "" | | ????????###### #????????## ????????????# "" | | ?????????????# #?????????## ????????????###### | | ?????????????# #??????????# ?????????????????#%## | | ?????????#####%##?????????# ?????????????????# #? | | ?????????# #####?????# ?????????????????# #? | | ?????????# """ #?????# ?????????????????# #? | | ?????????# """ ## #?????? ??????????????????# #? | | ?????????# """ ## #?????????????????????????# #? | | ?????????# ## #?????????????????????????# #? | | ?????????#########%!#?????????????????????????# #? | | ?????????????????# %######???????????????????## #? | | ?????????????????#! #??????????????????## ## | | ?????????????????# % #??????????????????# | | ?????????????????###### #??????????????????## | | ??????????????????????# #???????????????????## | | ??????????????????????# #????????????????????## | | ?????????????????????## #?????????????????????## | | ????????????????????## #??????##### #?????????# | | ????????????????????# ### #?????????# | | ????????????????????# @ g #??????????????? | | ???????????????????# g ##??????????????? | | ???????????????? u #???????????????? | | ???????????? ##???????????????? | | ???????????## ##????????????????? | | ????????????###### ###?????????????????? | | ?????????????????## ##???????????????????# | | ??????????????????# #????????????????????# | | ?????????????????? ???????????????????? | | ????????????????? ???????????????????? | | ???????????????? #????????????????????# | | ??????????????? #####?????????????????????## | | ???????????????? #???????????????????????????? | | ?????????????????? ????????????????????????????? | | ?????????????????????????????????????????????????? | | ?????????????????????????????????????????????????? | | ?????????????????????????????????????????????????? | | ?????????????????????????????????????????????????? | | ?????????????????????????????????????????????????? | | ?????????????????????????????????????????????????? | | ?????????????????????????????????????????????????? | | ?????????????????????????????????????????????????? | | | | | | | +----------------------------------------------------+ Best States ------------- Heat Dissipation 25 Energy Generation 10 Energy Capacity 250 Matter Stores 300 Matter Capacity 300 Sight Range 16 Terrain Scan Density 10 Evasion (%) 44 Recoil Reduction 2 Item Schematics ----------------- None Robot Schematics ------------------ None Fabricated ------------ Nothing Alien Tech Used ----------------- None Achievements -------------- None Challenges ------------ None Game ------ Seed HellfireOmegaModule Manual? 0 Play Time 00:10:18 Cumulative 587.5 hours Start 2020.06.20 @ 09:53:56 End 2020.06.20 @ 10:00:59 Sessions 1 Manual Loads 0 Difficulty Rogue Special Mode None Game No. 436 Rogue 432 Adventurer 4 Explorer 0 Win Type - Total 66 Types 54/5/3/2/2/0/0 Lore% 94 Gallery% 96 Achievement% 96 Wizard Run 0 Options --------- ASCII 0 Keyboard 0 Movement Vi Keybinds 0 Fullscreen 0 Font 16/Terminus Map View 76x50 Tactical HUD 1 Map Filters NONE Filters NONE Steam 1 RUN: 20b2d480-5ed8-4c21-9ef3-ac38b1916886